bitfinex-derivatives/quotes_SOLF0:USTF0_20250624
["timestamp","ask_amount","ask_price","bid_price","bid_amount"]
[1750763836603,42.061,143.62,143.57,3.48825073]
[1750763837004,42.061,143.62,143.57,10.44865073]
[1750763838006,6.9595,143.6,143.58,6.96]
[1750763838306,6.9595,143.6,143.57,3.48825073]
[1750763838508,6.9595,143.6,143.58,6.9602]
[1750763839608,6.9595,143.6,143.57,10.44865073]
[1750763841006,6.9595,143.6,143.58,6.9601]
[1750763841206,6.959,143.61,143.57,3.48825073]
[1750763841407,6.959,143.61,143.59,3.48825073]
[1750763841810,6.959,143.61,143.59,10.44775073]
[1750763842413,35.08,143.65,143.6,6.9589]
[1750763842610,35.08,143.65,143.61,3.48825073]
[1750763842917,35.08,143.65,143.61,10.44695073]
[1750763843516,6.958,143.63,143.61,10.44695073]
[1750763844416,6.9583,143.62,143.61,3.48825073]
[1750763847124,6.958,143.63,143.61,10.44695073]
[1750763847624,6.9575,143.64,143.62,6.9583]
[1750763848025,35.08,143.65,143.61,3.48825073]
[1750763848225,6.9576,143.64,143.62,6.9582]
[1750763848929,6.9576,143.64,143.61,10.44675073]
[1750763850728,6.9576,143.64,143.62,6.9582]
[1750763851330,6.9571,143.65,143.63,10.44605073]
[1750763851824,42.041,143.68,143.59,35.08]
[1750763852024,42.041,143.68,143.61,3.48825073]
[1750763853328,6.958,143.63,143.61,10.44695073]
[1750763853631,6.958,143.63,143.61,3.48825073]
[1750763855231,6.958,143.63,143.61,10.44695073]
[1750763858634,6.9575,143.64,143.62,6.9583]
[1750763858826,42.041,143.68,143.61,3.48825073]
[1750763859226,6.9576,143.64,143.61,10.44665073]
[1750763859630,42.041,143.68,143.61,10.44665073]
[1750763859837,6.9583,143.62,143.61,3.48825073]
[1750763865730,10.44925073,143.66,143.59,35.08]
[1750763866338,6.9592,143.6,143.59,35.08]
[1750763866536,5.05361831,143.65,143.56,41.933]
[1750763866841,35.08,143.64,143.57,3.48825073]
[1750763867243,38.56825073,143.64,143.56,44.2487]
[1750763867537,5.05418356,143.63,143.56,44.2487]
[1750763867846,38.56825073,143.64,143.56,44.2487]
[1750763868143,5.05402473,143.63,143.56,44.2487]
[1750763868336,38.56825073,143.64,143.56,44.2487]
[1750763868538,6.9601,143.59,143.56,44.2487]
[1750763869149,38.56825073,143.64,143.57,3.48825073]
[1750763869150,6.9595,143.6,143.57,3.48825073]
[1750763869436,35.08,143.64,143.57,3.48825073]
[1750763869646,6.9596,143.6,143.57,10.44865073]
[1750763870034,3.48825073,143.63,143.56,37.2879]
[1750763870339,3.48825073,143.63,143.56,40.77615073]
[1750763870946,6.96,143.59,143.56,47.73705073]
[1750763872446,6.9602,143.58,143.56,47.73705073]
[1750763883851,3.48825073,143.63,143.56,40.77615073]
[1750763884459,6.9604,143.58,143.56,45.52925073]
[1750763884957,6.9607,143.57,143.56,38.56825073]
[1750763885852,6.9607,143.57,143.54,10.45015073]
[1750763886552,6.9607,143.57,143.55,6.9616]
[1750763888056,6.9607,143.57,143.56,3.48825073]
[1750763888259,6.9607,143.57,143.56,2.23310266]
[1750763888963,6.9604,143.58,143.56,9.19430266]
[1750763889256,9.19410266,143.62,143.57,2.23310266]
[1750763889659,6.9602,143.58,143.57,2.23310266]
[1750763891060,48.9948,143.64,143.55,2.23310266]
[1750763891061,2.23310266,143.59,143.55,2.23310266]
[1750763891760,6.9614,143.56,143.55,2.23310266]
[1750763892469,6.9614,143.56,143.53,38.55063208]
[1750763892968,6.9614,143.56,143.55,3.49063208]
[1750763893457,6.9614,143.56,143.53,45.51303208]
[1750763893659,35.06,143.6,143.53,38.55063208]
[1750763893860,40.1024153,143.6,143.53,38.55063208]
[1750763894177,35.06,143.6,143.53,45.51313208]
[1750763894780,6.9614,143.56,143.53,45.51313208]
[1750763895085,35.06,143.6,143.54,3.49063208]
[1750763895273,6.9618,143.55,143.54,3.49063208]
[1750763896380,6.9614,143.56,143.54,3.49063208]
[1750763896983,6.9614,143.56,143.53,42.0225]
[1750763897180,6.9614,143.56,143.53,45.51313208]
[1750763897481,6.9617,143.55,143.53,42.0225]
[1750763897682,35.06,143.6,143.52,8.03853208]
[1750763897879,37.2706,143.6,143.52,5.77143208]
[1750763898069,6.9624,143.54,143.51,9.3205]
[1750763898274,6.9624,143.54,143.52,3.49063208]
[1750763898777,6.961,143.59,143.51,2.3572]
[1750763898977,20.99295962,143.59,143.5,38.55063208]
[1750763899176,6.961,143.58,143.5,38.55063208]
[1750763899972,11.99960436,143.58,143.5,35.06]
[1750763900180,6.9629,143.53,143.51,3.49063208]
[1750763900681,6.9631,143.52,143.51,3.49063208]
[1750763901081,8.52605768,143.59,143.51,3.49063208]
[1750763901285,14.02430041,143.59,143.51,3.49063208]
[1750763901584,6.9629,143.53,143.51,3.49063208]
[1750763902488,6.9629,143.53,143.49,6.9643]
[1750763902489,3.49063208,143.53,143.47,2.4297]
[1750763902784,3.49063208,143.53,143.46,9.3436]
[1750763902989,6.9646,143.49,143.46,9.3436]
[1750763905384,6.9646,143.49,143.46,12.83423208]
[1750763906289,6.9646,143.49,143.47,6.9655]
[1750763906488,6.9646,143.49,143.47,3.49063208]
[1750763906690,6.9646,143.49,143.46,2.3777]
[1750763906895,6.9646,143.49,143.47,3.49063208]
[1750763907791,6.9646,143.49,143.47,10.45613208]
[1750763908486,6.9651,143.48,143.46,9.3435]
[1750763908689,6.9651,143.48,143.46,12.83413208]
[1750763909691,6.9648,143.49,143.46,12.83413208]
[1750763910593,6.9648,143.49,143.47,6.9655]
[1750763911088,35.34,143.52,143.46,3.49063208]
[1750763911988,38.83063208,143.52,143.46,3.49063208]
[1750763912185,38.83063208,143.52,143.45,258.80969544]
[1750763912389,6.9658,143.47,143.45,265.71599544]
[1750763912588,38.83063208,143.52,143.45,258.74969544]
[1750763912794,38.83063208,143.52,143.45,123.30969544]
[1750763913496,6.9658,143.47,143.45,35.34]
[1750763914296,6.9658,143.47,143.45,42.3064]
[1750763914492,38.83063208,143.52,143.45,42.3064]
[1750763914790,38.83063208,143.52,143.45,45.79703208]
[1750763915294,6.9658,143.47,143.45,35.34]
[1750763915690,6.966,143.46,143.44,8.18943208]
[1750763915899,6.961,143.5,143.44,8.18943208]
[1750763916393,3.49063208,143.51,143.45,6.9665]
[1750763916394,6.961,143.49,143.45,6.9665]
[1750763916784,6.9653,143.48,143.45,6.9665]
[1750763916988,6.961,143.49,143.46,3.49063208]
[1750763917496,13.9258,143.49,143.46,10.45633208]
[1750763917792,13.9258,143.49,143.44,4.6988]
[1750763917793,5.85563208,143.55,143.44,4.6988]
[1750763917998,35.34,143.54,143.49,6.9644]
[1750763918894,6.9639,143.51,143.48,10.45543208]
[1750763922598,6.9633,143.52,143.5,3.49063208]
[1750763923197,6.9633,143.52,143.5,10.45463208]
[1750763923803,6.961,143.53,143.48,3.49063208]
[1750763924897,6.9638,143.51,143.48,10.45543208]
[1750763925091,6.961,143.53,143.48,10.45543208]
[1750763926393,10.45163208,143.53,143.46,38.83063208]
[1750763926604,10.45163208,143.53,143.46,3.49063208]
[1750763926800,6.9655,143.47,143.46,3.49063208]
[1750763927005,6.9655,143.47,143.45,138.81063208]
[1750763927706,6.9653,143.48,143.45,145.77693208]
[1750763928306,6.9653,143.48,143.45,10.45693208]
[1750763930210,6.9653,143.48,143.46,6.966]
[1750763931310,10.45163208,143.53,143.47,10.45613208]
[1750763931311,6.9648,143.49,143.47,10.45613208]
[1750763933708,6.9648,143.49,143.48,6.965]
[1750763934013,6.9648,143.49,143.45,8.64384877]
[1750763934313,6.9648,143.49,143.48,3.49063208]
[1750763936011,37.6779,143.54,143.48,3.49063208]
[1750763936209,37.6779,143.54,143.5,3.49063208]
[1750763936210,42.301,143.54,143.5,3.49063208]
[1750763936710,6.9634,143.52,143.5,3.49063208]
[1750763937112,42.301,143.54,143.47,8.64384877]
[1750763937412,45.79163208,143.54,143.47,3.49063208]
[1750763937908,6.961,143.52,143.46,8.64384877]
[1750763938114,6.961,143.52,143.47,3.49063208]
[1750763938412,6.965,143.48,143.47,3.49063208]
[1750763939417,6.9655,143.47,143.46,8.64384877]
[1750763939602,10.45163208,143.52,143.44,5.84623208]
[1750763939912,6.9658,143.47,143.44,12.81293208]
[1750763940301,6.9658,143.47,143.44,21.45678085]
[1750763940504,6.9658,143.47,143.44,12.81293208]
[1750763941207,6.966,143.46,143.44,12.81293208]
[1750763942018,6.966,143.46,143.44,5.84623208]
[1750763942207,10.45163208,143.52,143.43,12.13448085]
[1750763942410,38.59063208,143.5,143.43,12.13448085]
[1750763943005,3.49063208,143.45,143.39,12.13448085]
[1750763943315,6.9685,143.41,143.39,8.64384877]
[1750763943518,10.45163208,143.45,143.38,8.64384877]
[1750763943913,6.9693,143.4,143.37,21.53838085]
[1750763944711,6.9693,143.4,143.37,12.89453208]
[1750763945115,6.9693,143.4,143.37,21.56202136]
[1750763945517,6.9693,143.4,143.37,12.89453208]
[1750763945718,35.12,143.41,143.36,8.66748928]
[1750763946021,3.49063208,143.38,143.32,21.24635817]
[1750763946219,6.9723,143.34,143.32,21.24635817]
[1750763946423,3.49063208,143.38,143.32,12.57886889]
[1750763946716,35.12,143.39,143.32,12.57886889]
[1750763946918,3.49063208,143.38,143.32,12.57886889]
[1750763947108,38.61063208,143.39,143.32,12.57886889]
[1750763947314,35.12,143.39,143.32,12.57886889]
[1750763947505,3.49063208,143.37,143.32,12.57886889]
[1750763948517,35.12,143.39,143.33,3.49063208]
[1750763949223,35.12,143.39,143.32,12.57886889]
[1750763949224,35.12,143.39,143.34,3.49063208]
[1750763949907,6.9702,143.38,143.35,6.9713]
[1750763950320,35.12,143.39,143.35,6.9713]
[1750763950525,37.48,143.42,143.36,10.46143208]
[1750763950814,3.49063208,143.37,143.32,12.57886889]
[1750763951016,40.97063208,143.37,143.32,12.57886889]
[1750763951518,6.9717,143.35,143.32,12.57886889]
[1750763951713,40.97063208,143.37,143.32,12.57886889]
[1750763953918,3.49063208,143.35,143.32,12.57886889]
[1750763954818,37.48,143.37,143.32,12.57886889]
[1750763955014,6.9723,143.33,143.32,12.57886889]
[1750763958918,39.08,143.33,143.26,39.08]
[1750763959125,3.49063208,143.31,143.24,3.49063208]
[1750763959421,39.08,143.33,143.24,3.49063208]
[1750763959422,42.57063208,143.33,143.24,3.49063208]
[1750763960021,6.9745,143.29,143.26,6.9755]
[1750763960512,6.9745,143.29,143.24,3.49063208]
[1750763961419,6.9749,143.28,143.24,3.49063208]
[1750763961623,42.57063208,143.33,143.24,3.49063208]
[1750763961818,42.57063208,143.33,143.25,6.976]
[1750763962124,3.49063208,143.31,143.25,6.976]
[1750763962816,6.9755,143.27,143.24,10.46723208]
[1750763963012,3.49063208,143.31,143.24,3.49063208]
[1750763963826,6.975,143.28,143.25,6.976]
[1750763964416,6.9745,143.29,143.26,6.9757]
[1750763964617,42.57063208,143.33,143.26,6.9757]
[1750763965219,42.57063208,143.33,143.26,3.49063208]
[1750763965428,39.1,143.32,143.26,3.49063208]
[1750763965821,6.9742,143.3,143.27,6.9749]
[1750763966423,6.9745,143.29,143.27,6.9749]
[1750763966930,6.9745,143.29,143.26,6.9756]
[1750763968023,3.50669067,143.27,143.13,8.66748928]
[1750763968232,3.50770499,143.26,143.18,3.50770499]
[1750763968417,3.50770499,143.26,143.18,42.60770499]
[1750763968822,49.56870499,143.27,143.18,42.60770499]
[1750763969022,6.9763,143.25,143.21,6.9781]
[1750763969221,46.061,143.27,143.21,3.50770499]
[1750763969618,6.9765,143.25,143.21,10.48540499]
[1750763969818,2.2596,143.3,143.23,3.50770499]
[1750763970032,39.1,143.31,143.25,3.50770499]
[1750763970233,39.1,143.31,143.23,2.415]
[1750763970424,39.1,143.31,143.25,3.50770499]
[1750763970619,6.9746,143.29,143.26,6.9757]
[1750763970832,6.9746,143.29,143.25,3.50770499]
[1750763971224,39.1,143.31,143.25,10.48360499]
[1750763971423,39.1,143.31,143.23,2.415]
[1750763971632,39.1,143.31,143.24,3.50770499]
[1750763971823,39.1,143.31,143.24,10.48420499]
[1750763972832,6.9751,143.28,143.24,10.48420499]
[1750763973232,39.1,143.31,143.24,10.48420499]
[1750763973530,6.9751,143.28,143.24,10.48420499]
[1750763974129,6.9751,143.28,143.26,3.50770499]
[1750763974326,6.9743,143.29,143.23,2.415]
[1750763974525,6.9743,143.29,143.27,3.50770499]
[1750763974720,39.1,143.31,143.23,2.415]
[1750763974928,3.50770499,143.29,143.22,3.50770499]
[1750763975126,39.1,143.31,143.21,4.5022]
[1750763975332,39.1,143.31,143.21,2.2099]
[1750763975333,6.9772,143.24,143.21,2.2099]
[1750763975530,4.5557,143.3,143.21,5.71760499]
[1750763975729,3.50770499,143.29,143.21,5.71760499]
[1750763976439,3.50770499,143.29,143.21,12.69550499]
[1750763976738,4.5557,143.3,143.21,5.71760499]
[1750763976941,8.06340499,143.3,143.23,3.50770499]
[1750763977145,3.50770499,143.25,143.11,1.21518987]
[1750763977437,3.50770499,143.21,143.12,2.3647]
[1750763977634,46.68770499,143.21,143.13,3.50770499]
[1750763977841,43.18,143.21,143.15,3.50770499]
[1750763978035,43.18,143.21,143.12,2.3647]
[1750763978036,6.9795,143.19,143.14,6.9814]
[1750763978245,43.18,143.21,143.15,3.50770499]
[1750763979139,43.18,143.21,143.13,2.3024]
[1750763979441,47.7357,143.24,143.17,3.50770499]
[1750763979940,6.9788,143.2,143.17,3.50770499]
[1750763980139,47.7357,143.24,143.14,43.18]
[1750763980342,6.9795,143.19,143.18,3.50770499]
[1750763981139,6.9789,143.2,143.18,3.50770499]
[1750763981350,47.7357,143.24,143.18,3.50770499]
[1750763981950,6.9791,143.2,143.18,3.50770499]
[1750763983856,6.9791,143.2,143.17,10.48770499]
[1750763984656,43.18,143.24,143.19,3.50770499]
[1750763986340,45.5459,143.27,143.19,10.48660499]
[1750763986747,45.5459,143.27,143.19,3.50770499]
[1750763987648,6.9777,143.22,143.19,10.48660499]
[1750763987844,45.5459,143.27,143.19,3.50770499]
[1750763988049,45.5459,143.27,143.21,3.50770499]
[1750763988246,6.9774,143.23,143.21,3.50770499]
[1750763988960,45.5459,143.27,143.21,3.50770499]
[1750763989256,6.9777,143.22,143.21,3.50770499]
[1750763990051,49.05360499,143.27,143.21,3.50770499]
[1750763990954,6.9777,143.22,143.21,3.50770499]
[1750763991263,49.05360499,143.27,143.18,50.1796]
[1750763991462,6.9785,143.21,143.19,3.50770499]
[1750763991857,3.50770499,143.26,143.18,46.70770499]
[1750763992563,6.9788,143.2,143.18,46.70770499]
[1750763992751,6.9788,143.2,143.18,3.50770499]
[1750763993159,6.9788,143.2,143.17,10.48740499]
[1750763993664,6.9788,143.2,143.18,6.9796]
[1750763995367,6.9788,143.2,143.18,3.50770499]
[1750763995568,6.9794,143.19,143.16,43.2]
[1750763995768,3.50799745,143.25,143.16,46.70799745]
[1750763996065,6.9787,143.2,143.16,46.70799745]
[1750763996469,6.9787,143.2,143.18,6.9796]
[1750763996968,6.9787,143.2,143.18,3.50799745]
[1750763997160,6.9791,143.19,143.18,3.50799745]
[1750763997356,6.9791,143.19,143.16,43.2]
[1750763997569,6.9791,143.19,143.17,3.50799745]
[1750763997864,6.9796,143.18,143.17,3.5083012]
[1750764001474,6.9802,143.17,143.15,3.5083012]
[1750764001867,6.98,143.18,143.15,10.4891012]
[1750764002171,46.7083012,143.23,143.15,10.4891012]
[1750764002377,53.6693012,143.23,143.15,10.4891012]
[1750764002564,6.98,143.18,143.15,10.4891012]
[1750764002870,53.6693012,143.23,143.15,3.5083012]
[1750764003072,3.5083012,143.21,143.13,2.3024]
[1750764003368,3.5083012,143.21,143.12,56.0551012]
[1750764003765,6.9814,143.15,143.12,56.0551012]
[1750764003967,6.9814,143.15,143.13,6.9821]
[1750764004166,6.9809,143.16,143.13,6.9821]
[1750764004468,43.2,143.19,143.13,6.9821]
[1750764004672,6.9809,143.16,143.13,10.4904012]
[1750764004879,6.9809,143.16,143.14,6.9815]
[1750764005070,43.2,143.19,143.13,3.5083012]
[1750764005577,6.981,143.16,143.13,10.4902012]
[1750764006263,6.981,143.16,143.14,6.9815]
[1750764006879,43.2,143.19,143.13,10.4902012]
[1750764007577,43.2,143.19,143.13,3.5083012]
[1750764007877,43.2,143.19,143.12,9.347]
[1750764008179,6.9814,143.15,143.13,3.5083012]
[1750764009376,6.9816,143.14,143.13,3.5083012]
[1750764011774,6.9813,143.15,143.13,3.5083012]
[1750764011970,43.2,143.19,143.13,3.5083012]
[1750764012875,43.2,143.19,143.12,2.3647]
[1750764012876,3.5083012,143.17,143.09,12.17579048]
[1750764013380,6.9833,143.11,143.09,3.5083012]
[1750764013874,45.9883012,143.15,143.06,50.6010012]
[1750764014173,42.48,143.15,143.06,44.8305]
[1750764014479,42.48,143.15,143.06,5.8588012]
[1750764014775,3.5083012,143.14,143.06,5.8588012]
[1750764015374,6.985,143.07,143.06,5.8588012]
[1750764015680,3.5083012,143.14,143.06,5.8588012]
[1750764015981,45.9883012,143.15,143.06,5.8588012]
[1750764016178,42.48,143.15,143.06,2.3505]
[1750764016366,3.5083012,143.13,143.06,5.8588012]
[1750764016774,42.48,143.15,143.08,3.5083012]
[1750764016981,45.9883012,143.15,143.08,3.5083012]
[1750764017274,45.9883012,143.15,143.07,3.5083012]
[1750764017576,45.9883012,143.15,143.07,10.4933012]
[1750764018081,45.9883012,143.15,143.08,6.9845]
[1750764018275,42.48,143.15,143.09,3.5083012]
[1750764018481,42.48,143.15,143.11,3.5083012]
[1750764018779,42.48,143.15,143.08,42.5]
[1750764018977,42.48,143.15,143.09,3.5083012]
[1750764019179,6.9829,143.12,143.09,3.5083012]
[1750764019974,6.9833,143.11,143.09,3.5083012]
[1750764020176,45.9883012,143.15,143.07,3.5083012]
[1750764020577,6.9845,143.08,143.07,3.5083012]
[1750764021183,6.985,143.07,143.06,2.3505]
[1750764021682,6.9848,143.08,143.05,48.4031012]
[1750764021882,6.9848,143.08,143.05,5.9031012]
[1750764022181,3.5083012,143.13,143.05,5.9031012]
[1750764022380,42.48,143.15,143.03,10.91428928]
[1750764022381,3.5083012,143.11,143.03,10.91428928]
[1750764022576,3.5083012,143.09,143.01,8.66748928]
[1750764022881,3.5083012,143.03,142.97,5.7551012]
[1750764023185,46.0083012,143.03,142.97,2.2468]
[1750764023478,46.0083012,143.03,142.95,5.9514012]
[1750764023479,42.5,143.03,142.95,5.9514012]
[1750764023677,3.5083012,143.02,142.95,5.9514012]
[1750764023873,6.9873,143.03,142.99,3.5083012]
[1750764024080,610.0926,143.1,142.99,3.5083012]
[1750764024081,42.5,143.04,142.99,3.5083012]
[1750764024373,610.0926,143.1,142.99,5.27509836]
[1750764024374,42.5,143.06,142.99,5.27509836]
[1750764024976,42.5,143.06,143.02,6.987]
[1750764025182,42.5,143.06,142.96,8.66748928]
[1750764025483,42.5,143.06,142.99,5.27509836]
[1750764026085,6.9867,143.04,143.01,6.9878]
[1750764026383,42.5,143.06,142.99,5.27509836]
[1750764026582,6.9867,143.04,143.0,6.9881]
[1750764026783,42.5,143.06,143.0,6.9881]
[1750764027274,6.987,143.03,143.0,6.9881]
[1750764028578,42.5,143.06,142.99,5.27509836]
[1750764029282,6.9873,143.03,143.0,6.9883]
[1750764031386,6.9873,143.03,143.01,6.9878]
[1750764031885,6.9866,143.04,143.01,6.9878]
[1750764032185,42.5,143.09,143.03,5.27509836]
[1750764032385,603.22,143.1,143.05,5.27509836]
[1750764032684,42.52,143.12,143.07,5.27509836]
[1750764032875,6.9833,143.11,143.07,5.27509836]
[1750764033071,42.52,143.12,143.08,6.9842]
[1750764033274,6.984,143.1,143.03,42.52]
[1750764033474,6.984,143.1,143.07,5.27509836]
[1750764033674,42.52,143.12,143.03,5.27509836]
[1750764033874,6.9858,143.06,143.03,5.27509836]
[1750764034085,44.8682,143.12,143.03,5.27509836]
[1750764034281,5.27509836,143.11,143.03,5.27509836]
[1750764034684,5.27509836,143.11,143.01,156.68859836]
[1750764034875,5.27509836,143.11,143.01,151.4135]
[1750764035081,5.27509836,143.11,143.02,12.26239836]
[1750764035280,6.9859,143.06,143.02,12.26239836]
[1750764035688,4.6442,143.14,143.04,5.27509836]
[1750764035876,6.9849,143.08,143.06,5.27509836]
[1750764036081,42.52,143.13,143.06,5.27509836]
[1750764036881,42.52,143.13,143.06,7.52909836]
[1750764037284,42.52,143.13,143.06,14.51429836]
[1750764037487,6.9835,143.11,143.08,5.27509836]
[1750764037787,42.52,143.13,143.07,7.70289836]
[1750764038382,43.14,143.16,143.09,5.27509836]
[1750764038780,43.14,143.16,143.11,5.27509836]
[1750764038985,43.14,143.16,143.12,6.9825]
[1750764039185,6.9814,143.15,143.12,6.9825]
[1750764039385,43.14,143.19,143.12,6.9822]
[1750764039703,43.14,143.19,143.11,5.27509836]
[1750764040087,43.14,143.19,143.11,12.25789836]
[1750764040582,43.14,143.19,143.1,12.25839836]
[1750764041182,6.9824,143.13,143.1,12.25839836]
[1750764041579,6.9824,143.13,143.1,5.27509836]
[1750764042094,6.9827,143.12,143.1,5.27509836]
[1750764042293,5.27509836,143.18,143.09,5.27509836]
[1750764042590,6.9828,143.12,143.09,5.27509836]
[1750764042791,43.14,143.15,143.07,2.4278]
[1750764043091,6.9835,143.11,143.07,2.4278]
[1750764043291,43.14,143.14,143.07,9.4125]
[1750764043496,43.14,143.14,143.08,5.27509836]
[1750764044395,6.9834,143.11,143.07,9.4127]
[1750764044595,43.14,143.14,143.07,7.70289836]
[1750764045095,48.41509836,143.14,143.06,2.254]
[1750764045292,43.14,143.14,143.06,2.254]
[1750764045485,48.41509836,143.14,143.06,2.254]
[1750764045994,5.27509836,143.12,143.06,2.254]
[1750764046293,5.27509836,143.12,143.03,5.27509836]
[1750764046493,5.27509836,143.12,143.02,45.3973]
[1750764047197,43.14,143.14,143.02,45.3973]
[1750764047198,6.9868,143.04,143.02,2.2573]
[1750764047384,43.14,143.08,143.0,7.60309836]
[1750764048386,50.1248,143.08,143.02,5.27509836]
[1750764048585,43.14,143.08,143.02,5.27509836]
[1750764049098,43.14,143.08,143.0,7.60309836]
[1750764049283,6.9863,143.05,143.01,6.9875]
[1750764049682,6.9863,143.05,143.0,7.60309836]
[1750764050197,43.14,143.08,143.02,5.27509836]
[1750764050594,6.9855,143.07,143.03,6.9867]
[1750764050793,43.14,143.08,143.03,6.9867]
[1750764051594,6.9858,143.06,143.03,6.9867]
[1750764052597,6.9861,143.05,143.02,5.27509836]
[1750764052897,43.14,143.08,143.0,7.60309836]
[1750764053490,43.14,143.08,143.01,6.9878]
[1750764054089,6.9864,143.05,143.01,6.9878]
[1750764054800,6.9864,143.05,143.02,6.9872]
[1750764055099,6.9857,143.06,143.02,5.27509836]
[1750764055290,43.14,143.08,143.02,5.27509836]
[1750764055594,6.9857,143.06,143.02,5.27509836]
[1750764056608,6.9851,143.07,143.04,6.9865]
[1750764056798,45.4101,143.11,143.04,5.27509836]
[1750764056998,43.14,143.11,143.04,5.27509836]
[1750764057304,43.14,143.11,143.05,6.9857]
[1750764058403,43.14,143.11,143.06,6.9855]
[1750764058604,43.14,143.11,143.03,2.2709]
[1750764058797,6.9855,143.06,143.03,2.2709]
[1750764059893,6.9852,143.07,143.03,2.2709]
[1750764060301,6.9852,143.07,143.04,6.9861]
[1750764060503,6.9847,143.08,143.04,5.27509836]
[1750764060704,43.14,143.11,143.05,5.27509836]
[1750764061094,6.9842,143.09,143.05,5.27509836]
[1750764061291,6.9842,143.09,143.06,6.9852]
[1750764061695,43.14,143.11,143.05,5.27509836]
[1750764062001,50.129,143.14,143.05,5.27509836]
[1750764062304,50.129,143.14,143.05,12.26099836]
[1750764062805,6.9849,143.08,143.05,12.26099836]
[1750764063204,6.9849,143.08,143.05,6.9859]
[1750764064511,6.9851,143.07,143.05,6.9859]
[1750764065004,6.9851,143.07,143.04,2.2985]
[1750764065309,6.9848,143.08,143.04,2.2985]
[1750764065506,6.9848,143.08,143.05,6.9857]
[1750764066006,6.9848,143.08,143.05,6.9856]
[1750764066511,6.989,143.12,143.04,9.2848]
[1750764067009,6.9853,143.07,143.04,9.2848]
[1750764067198,5.27509836,143.11,143.03,59.35348764]
[1750764067511,43.14,143.1,143.03,43.14]
[1750764068199,43.14,143.1,143.03,51.80748928]
[1750764068601,6.9846,143.08,143.05,6.9856]
[1750764069000,43.14,143.1,143.04,5.27509836]
[1750764069207,6.9843,143.09,143.06,6.9852]
[1750764069511,49.989,143.13,143.04,8.66748928]
[1750764069716,6.9843,143.09,143.05,6.9856]
[1750764070009,6.9843,143.09,143.04,13.94258764]
[1750764070200,6.9832,143.11,143.08,6.9845]
[1750764070710,43.0,143.13,143.08,5.27509836]
[1750764070896,6.9821,143.13,143.1,5.27509836]
[1750764071307,43.0,143.16,143.1,5.27509836]
[1750764071515,43.0,143.16,143.07,51.66748928]
[1750764071703,43.0,143.16,143.08,5.27509836]
[1750764072308,6.9832,143.11,143.08,12.25919836]
[1750764072510,43.0,143.16,143.08,12.25919836]
[1750764072705,6.9828,143.12,143.08,12.25919836]
[1750764073205,6.9828,143.12,143.09,6.984]
[1750764073713,6.9828,143.12,143.1,6.9835]
[1750764073911,6.9822,143.13,143.1,6.9835]
[1750764074216,6.9822,143.13,143.1,10.49528001]
[1750764075213,6.9826,143.12,143.1,10.49528001]
[1750764075412,6.9826,143.12,143.1,3.51178001]
[1750764076814,6.9826,143.12,143.1,10.49528001]
[1750764077313,6.9823,143.13,143.1,10.49528001]
[1750764077815,6.9827,143.12,143.1,10.49528001]
[1750764078312,6.9831,143.11,143.07,51.66748928]
[1750764078612,3.51178001,143.11,143.03,12.17926929]
[1750764078813,45.04,143.12,143.03,3.51178001]
[1750764079009,3.51178001,143.1,143.03,3.51178001]
[1750764079514,6.9865,143.04,143.03,3.51178001]
[1750764079813,3.51178001,143.1,143.03,3.51178001]
[1750764080016,6.9862,143.05,143.03,3.51178001]
[1750764080214,6.9862,143.05,143.01,65.96823969]
[1750764080403,6.9862,143.05,143.01,60.69508928]
[1750764080608,7.50435041,143.11,143.01,58.98063969]
[1750764080903,6.9845,143.08,143.01,58.98063969]
[1750764081217,7.50435041,143.11,143.03,5.27315041]
[1750764081218,2.2312,143.11,143.03,5.27315041]
[1750764081516,6.9848,143.08,143.03,5.27315041]
[1750764081723,6.9848,143.08,143.04,6.9862]
[1750764082314,6.9851,143.07,143.04,6.9862]
[1750764083111,45.04,143.12,143.05,12.25905041]